[Event "African Online-ch Women 2021"]
[Site "Online"]
[Date "2021.02.01"]
[Round "9.14"]
[White "Leboela, Maboloko"]
[Black "Farnela, Nuzela Zacarias Musi"]
[Result "1-0"]
[ECO "D02"]
[WhiteElo "1296"]
[BlackElo "1431"]
[Annotator "NA RC"]
[PlyCount "117"]
[EventDate "2021.02.01"]
[EventType "swiss"]
[EventCountry "NET"]
[SourceTitle "playchess.com"]
[Source "ChessBase"]
[SourceQuality "1"]
[TimeControl "1500+10"]

1. d4 {[%emt 0:00:00]} d5 {[%emt 0:00:11]} 2. Bf4 {[%emt 0:00:04]} Bf5 {[%emt 0:00:09]} 3. Nf3 {[%emt 0:00:03]} e6 {[%emt 0:00:06]} 4. e3 {[%emt 0:00:04]} Nf6 {[%emt 0:00:09]} 5. Nbd2 {[%emt 0:00:03]} c6 {[%emt 0:00:12]} 6. Be2 {[%emt 0:00:04]} Bd6 {[%emt 0:00:17]} 7. Bg3 {[%emt 0:00:04]} h6 {[%emt 0:00:14]} 8. Nb3 {[%emt 0:00:06]} O-O {[%emt 0:00:30]} 9. Qd2 {[%emt 0:00:04]} Ne4 {[%emt 0:00:34]} 10. Qd1 {[%emt 0:00:17]} Qd7 {[%emt 0:02:19]} 11. Nbd2 {[%emt 0:00:11]} Qe7 {[%emt 0:00:16]} 12. Nxe4 {[%emt 0:00:06]} Bxe4 {[%emt 0:00:46]} 13. Bd3 {[%emt 0:00:04]} Bxd3 {[%emt 0:00:09]} 14. Qxd3 {[%emt 0:00:04]} Nd7 {[%emt 0:00:22]} 15. Ne5 {[%emt 0:00:06]} Nxe5 {[%emt 0:01:47]} 16. dxe5 {[%emt 0:00:04]} Bc7 {[%emt 0:00:18]} 17. e4 {[%emt 0:00:06]} Rac8 {[%emt 0:00:59]} 18. exd5 {[%emt 0:00:05]} cxd5 {[%emt 0:00:13]} 19. Bf4 {[%emt 0:00:04]} Qh4 {[%emt 0:00:45]} 20. g3 {[%emt 0:00:16]} Qh5 {[%emt 0:00:22]} 21. O-O {[%emt 0:00:12]} Bxe5 {[%emt 0:00:26]} 22. Bxe5 {[%emt 0:00:14]} Qxe5 {[%emt 0:00:15]} 23. c3 {[%emt 0:00:03]} Qg5 {[%emt 0:00:43]} 24. f4 {[%emt 0:00:06]} Qg6 {[%emt 0:00:09]} 25. Qb5 {[%emt 0:00:08]} b6 {[%emt 0:00:26]} 26. Rf3 {[%emt 0:00:06]} Qe4 {[%emt 0:00:40]} 27. Raf1 {[%emt 0:00:05]} Rc5 {[%emt 0:01:07]} 28. Qd7 {[%emt 0:00:08]} Ra8 {[%emt 0:01:49]} 29. f5 {[%emt 0:00:05]} a5 {[%emt 0:01:11]} 30. Qb7 {[%emt 0:00:15]} Rb8 {[%emt 0:00:20]} 31. Qxb8+ {[%emt 0:00:12]} Kh7 {[%emt 0:00:08]} 32. Qxb6 {[%emt 0:00:04]} Rc4 {[%emt 0:00:35]} 33. Qxa5 {[%emt 0:00:09]} Qe2 {[%emt 0:01:01]} 34. R1f2 {[%emt 0:00:08]} Qe1+ {[%emt 0:00:21]} 35. Kg2 {[%emt 0:00:03]} Re4 {[%emt 0:00:32]} 36. Qa7 {[%emt 0:00:21]} d4 {[%emt 0:00:21]} 37. cxd4 {[%emt 0:00:11]} Re2 {[%emt 0:03:26]} 38. Rxe2 {[%emt 0:00:05]} Qxe2+ {[%emt 0:00:07]} 39. Rf2 {[%emt 0:00:02]} Qe4+ {[%emt 0:00:08]} 40. Kg1 {[%emt 0:00:11]} Qe1+ {[%emt 0:00:23]} 41. Kg2 {[%emt 0:00:03]} Qe4+ {[%emt 0:00:05]} 42. Kh3 {[%emt 0:00:03]} h5 {[%emt 0:01:21]} 43. fxe6 {[%emt 0:00:10]} Qg4+ {[%emt 0:00:18]} 44. Kg2 {[%emt 0:00:04]} Qe4+ {[%emt 0:00:05]} 45. Kf1 {[%emt 0:00:02]} Qb1+ {[%emt 0:00:30]} 46. Ke2 {[%emt 0:00:04]} Qc2+ {[%emt 0:00:24]} 47. Ke3 {[%emt 0:00:02]} Qc1+ {[%emt 0:00:12]} 48. Rd2 {[%emt 0:00:13]} Qe1+ {[%emt 0:00:06]} 49. Kd3 {[%emt 0:00:02]} Qb1+ {[%emt 0:00:44]} 50. Kc3 {[%emt 0:00:03]} Qc1+ {[%emt 0:00:08]} 51. Rc2 {[%emt 0:00:03]} Qe3+ {[%emt 0:00:08]} 52. Kb4 {[%emt 0:00:06]} Qxe6 {[%emt 0:00:12]} 53. Qc5 {[%emt 0:00:09]} Qxa2 {[%emt 0:00:15]} 54. d5 {[%emt 0:00:06]} Qa8 {[%emt 0:00:13]} 55. d6 {[%emt 0:00:04]} Qb7+ {[%emt 0:00:11]} 56. Qb5 {[%emt 0:00:05]} Qe4+ {[%emt 0:00:11]} 57. Qc4 {[%emt 0:00:03]} Qb7+ {[%emt 0:00:09]} 58. Kc3 {[%emt 0:00:03]} Qf3+ {[%emt 0:00:07]} 59. Qd3+ {[%emt 0:00:02]} 1-0

[Event "African Online-ch Women 2021"]
[Site "Online"]
[Date "2021.02.01"]
[Round "9.15"]
[White "Karania, Saloni"]
[Black "Ibtihal Mohammed"]
[Result "1/2-1/2"]
[ECO "A30"]
[WhiteElo "1304"]
[BlackElo "1491"]
[Annotator "NA RC"]
[PlyCount "114"]
[EventDate "2021.02.01"]
[EventType "swiss"]
[EventCountry "NET"]
[SourceTitle "playchess.com"]
[Source "ChessBase"]
[SourceQuality "1"]
[TimeControl "1500+10"]

1. d4 {[%emt 0:00:00]} c5 {[%emt 0:00:04]} 2. c4 {[%emt 0:00:07]} cxd4 {[%emt 0:00:02]} 3. Qxd4 {[%emt 0:00:05]} Nc6 {[%emt 0:00:03]} 4. Qd1 {[%emt 0:00:06]} g6 {[%emt 0:00:03]} 5. Nc3 {[%emt 0:00:37]} Bg7 {[%emt 0:00:03]} 6. Qc2 {[%emt 0:00:09]} d6 {[%emt 0:00:08]} 7. e3 {[%emt 0:00:32]} Bf5 {[%emt 0:00:05]} 8. Qd2 {[%emt 0:00:18]} Nb4 {[%emt 0:00:06]} 9. e4 {[%emt 0:00:57]} Be6 {[%emt 0:00:15]} 10. a3 {[%emt 0:00:27]} Nc6 {[%emt 0:00:07]} 11. Nf3 {[%emt 0:01:07]} Rc8 {[%emt 0:00:07]} 12. b3 {[%emt 0:00:15]} Nf6 {[%emt 0:00:26]} 13. Bb2 {[%emt 0:00:22]} O-O {[%emt 0:00:05]} 14. Bd3 {[%emt 0:00:37]} Bg4 {[%emt 0:00:11]} 15. Qf4 {[%emt 0:02:15]} Bxf3 {[%emt 0:00:41]} 16. Qxf3 {[%emt 0:00:10]} Nd4 {[%emt 0:00:04]} 17. Qe3 {[%emt 0:01:34]} Nxb3 {[%emt 0:00:04]} 18. Rd1 {[%emt 0:00:31]} Nc5 {[%emt 0:00:18]} 19. Bb1 {[%emt 0:00:33]} Ng4 {[%emt 0:00:07]} 20. Qf4 {[%emt 0:00:33]} Ne5 {[%emt 0:00:07]} 21. O-O {[%emt 0:01:36]} Nxc4 {[%emt 0:00:05]} 22. Ba1 {[%emt 0:02:09]} Nxa3 {[%emt 0:00:08]} 23. Ba2 {[%emt 0:00:13]} Nc2 {[%emt 0:00:06]} 24. Bb2 {[%emt 0:01:55]} Nb4 {[%emt 0:00:04]} 25. Bb1 {[%emt 0:00:39]} Ne6 {[%emt 0:00:08]} 26. Qd2 {[%emt 0:00:19]} Qb6 {[%emt 0:00:16]} 27. Na4 {[%emt 0:00:31]} Qb5 {[%emt 0:00:15]} 28. Nc3 {[%emt 0:00:10]} Qa5 {[%emt 0:00:38]} 29. Bd3 {[%emt 0:00:39]} Nxd3 {[%emt 0:00:08]} 30. Qxd3 {[%emt 0:00:26]} Bxc3 {[%emt 0:00:11]} 31. Ra1 {[%emt 0:00:39]} Qb4 {[%emt 0:00:03]} 32. Ba3 {[%emt 0:00:18]} Qd4 {[%emt 0:00:13]} 33. Qxd4 {[%emt 0:00:39]} Bxd4 {[%emt 0:00:03]} 34. Rab1 {[%emt 0:00:13]} b6 {[%emt 0:00:05]} 35. Kh1 {[%emt 0:00:10]} Rc3 {[%emt 0:00:11]} 36. Bb2 {[%emt 0:00:21]} Rb3 {[%emt 0:00:05]} 37. Bxd4 {[%emt 0:00:03]} Rxb1 {[%emt 0:00:02]} 38. Rxb1 {[%emt 0:00:04]} Nxd4 {[%emt 0:00:03]} 39. h3 {[%emt 0:00:04]} Rc8 {[%emt 0:00:04]} 40. Rd1 {[%emt 0:00:05]} e5 {[%emt 0:00:03]} 41. Kh2 {[%emt 0:00:09]} Rc2 {[%emt 0:00:04]} 42. Kg3 {[%emt 0:00:30]} b5 {[%emt 0:00:06]} 43. f3 {[%emt 0:00:11]} b4 {[%emt 0:00:07]} 44. Rb1 {[%emt 0:00:02]} b3 {[%emt 0:00:03]} 45. f4 {[%emt 0:00:36]} a5 {[%emt 0:00:10]} 46. f5 {[%emt 0:00:11]} gxf5 {[%emt 0:00:06]} 47. exf5 {[%emt 0:00:02]} a4 {[%emt 0:00:07]} 48. f6 {[%emt 0:00:02]} a3 {[%emt 0:00:07]} 49. Ra1 {[%emt 0:00:18]} a2 {[%emt 0:00:03]} 50. h4 {[%emt 0:00:07]} h6 {[%emt 0:00:15]} 51. Kh3 {[%emt 0:00:42]} b2 {[%emt 0:00:33]} 52. Rxa2 {[%emt 0:00:08]} b1=Q {[%emt 0:00:04]} 53. Ra8+ {[%emt 0:00:07]} Kh7 {[%emt 0:00:04]} 54. Ra3 {[%emt 0:00:23]} Qh1+ {[%emt 0:00:07]} 55. Kg4 {[%emt 0:00:11]} Qxg2+ {[%emt 0:00:06]} 56. Rg3 {[%emt 0:00:10]} h5+ {[%emt 0:00:10]} 57. Kxh5 {[%emt 0:00:08]} Qxg3 {[%emt 0:00:06]} 1/2-1/2